fUST/lending_fUST_20241227
["ID","MTS","AMOUNT","RATE_DAILY","PERIOD"]
[346832588,1735312250633,-500.0,0.00010348,2]
[346832589,1735312250643,-500.0,0.00010348,2]
[346832590,1735312250653,-505.01655995,0.00010348,2]
[346832591,1735312250662,-222.95877764,0.00010348,2]
[346832592,1735312250672,-1257.05,0.00010348,2]
[346832593,1735312250681,-587.51,0.00010348,2]
[346832594,1735312250691,-168.21625515,0.00010348,2]
[346832595,1735312250701,-500.0,0.00010349,2]
[346832596,1735312250710,-503.09317963,0.00010349,2]
[346832597,1735312250720,-500.0,0.00010349,2]
[346832598,1735312250730,-502.27168027,0.00010349,2]
[346832599,1735312250739,-500.0,0.00010349,2]
[346832600,1735312250749,-500.0,0.00010349,2]
[346832601,1735312250759,-500.0,0.00010349,2]
[346832602,1735312250768,-500.0,0.00010349,2]
[346832603,1735312250778,-152.51569471,0.00010349,2]
[346832604,1735312250790,-500.0,0.00010349,2]
[346832605,1735312250800,-500.0,0.00010349,2]
[346832606,1735312250810,-502.38335728,0.00010349,2]
[346832607,1735312250820,-500.0,0.00010349,2]
[346832608,1735312250829,-500.0,0.00010349,2]
[346832609,1735312250839,-500.0,0.00010349,2]
[346832610,1735312250848,-503.06093542,0.00010349,2]
[346832611,1735312250858,-502.21404212,0.00010349,2]
[346832612,1735312250871,-502.06395716,0.00010349,2]
[346832613,1735312250881,-500.0,0.00010349,2]
[346832614,1735312250891,-500.0,0.00010349,2]
[346832615,1735312250900,-500.0,0.00010349,2]
[346832616,1735312250911,-500.0,0.00010349,2]
[346832617,1735312250920,-500.0,0.00010349,2]
[346832618,1735312250930,-503.02573615,0.00010349,2]
[346832619,1735312250943,-502.22687436,0.00010349,2]
[346832620,1735312250953,-494.5,0.00010349,2]
[346832621,1735312250963,-500.0,0.00010349,2]
[346832622,1735312250972,-344.25921575,0.00010349,2]
[346832623,1735312250982,-503.88529704,0.00010349,2]
[346832624,1735312250992,-500.0,0.00010349,2]
[346832625,1735312251001,-500.0,0.00010349,2]
[346832626,1735312251011,-500.0,0.00010349,2]
[346832627,1735312251020,-502.54037212,0.00010349,2]
[346832628,1735312251029,-500.0,0.00010349,2]
[346832629,1735312251041,-620.22938055,0.00010349,2]
[346832630,1735312251050,-500.0,0.00010349,2]
[346832631,1735312251060,-503.76093126,0.00010349,2]
[346832632,1735312251069,-500.0,0.00010349,2]
[346832633,1735312251079,-500.0,0.00010349,2]
[346832634,1735312251089,-500.0,0.00010349,2]
[346832635,1735312251099,-500.0,0.00010349,2]
[346832636,1735312251108,-500.0,0.00010349,2]
[346832637,1735312251118,-500.0,0.00010349,2]
[346832638,1735312251128,-500.0,0.00010349,2]
[346832639,1735312251138,-500.0,0.00010349,2]
[346832640,1735312251147,-500.0,0.00010349,2]
[346832641,1735312251157,-500.0,0.00010349,2]
[346832642,1735312251166,-500.0,0.00010349,2]
[346832643,1735312251176,-1000.0,0.0001035,2]
[346832644,1735312251187,-2321.1,0.0001035,2]
[346832645,1735312251196,-2022.13,0.00010351,2]
[346832646,1735312251206,-196.54147377,0.00010351,2]
[346832647,1735312251215,-8726.80457952,0.00010364,2]
[346832648,1735312251225,-420.0,0.00010475,2]
[346832649,1735312251235,-526.02,0.000105,2]
[346832650,1735312251245,-8726.80457952,0.00010524,2]
[346832651,1735312251255,-1000.0,0.000106,2]
[346832652,1735312251265,-500.0,0.0001062,2]
[346832653,1735312251274,-1188.29,0.0001062,2]
[346832654,1735312251285,-500.0,0.0001062,2]
[346832655,1735312251295,-500.0,0.0001062,2]
[346832656,1735312251304,-640.02,0.0001062,2]
[346832657,1735312251314,-541.65,0.0001062,2]
[346832658,1735312251324,-500.0,0.0001062,2]
[346832659,1735312251333,-500.0,0.0001062,2]
[346832660,1735312251343,-500.0,0.0001062,2]
[346832661,1735312251354,-500.0,0.00010621,2]
[346832662,1735312251363,-364.53145558,0.00010621,2]
[346832663,1735312251373,-500.0,0.00010621,2]
[346832664,1735312251383,-500.0,0.00010621,2]
[346832665,1735312251393,-500.0,0.00010621,2]
[346832666,1735312251403,-500.0,0.00010621,2]
[346832667,1735312251412,-390.49113887,0.00010621,2]
[346832668,1735312251422,-500.0,0.00010621,2]
[346832669,1735312251432,-360.02577168,0.00010621,2]
[346832670,1735312251442,-500.0,0.00010621,2]
[346832671,1735312251452,-500.0,0.00010621,2]
[346832672,1735312251461,-500.0,0.00010621,2]
[346832673,1735312251470,-500.0,0.00010621,2]
[346832674,1735312251480,-698.33,0.00010621,2]
[346832675,1735312251490,-500.0,0.00010621,2]
[346832676,1735312251499,-500.0,0.00010621,2]
[346832677,1735312251508,-500.0,0.00010621,2]
[346832678,1735312251518,-441.71,0.00010621,2]
[346832679,1735312251527,-500.0,0.00010621,2]
[346832680,1735312251539,-500.0,0.00010621,2]
[346832681,1735312251549,-500.0,0.00010621,2]
[346832682,1735312251559,-500.0,0.00010621,2]
[346832683,1735312251568,-226.20121168,0.00010621,2]
[346832684,1735312251578,-500.0,0.00010621,2]
[346832685,1735312251588,-500.0,0.00010621,2]
[346832687,1735312251597,-500.0,0.00010621,2]
[346832689,1735312251607,-522.18441875,0.00010621,2]
[346832691,1735312251617,-500.0,0.00010621,2]
[346832693,1735312251626,-594.49,0.00010621,2]
[346832695,1735312251636,-669.81893924,0.00010621,2]
[346832697,1735312251645,-500.0,0.00010622,2]
[346832699,1735312251655,-505.26427802,0.00010622,2]
[346832701,1735312251665,-500.0,0.00010622,2]
[346832703,1735312251674,-500.0,0.00010622,2]
[346832705,1735312251684,-500.0,0.00010622,2]
[346832707,1735312251694,-500.0,0.00010622,2]
[346832709,1735312251703,-500.0,0.00010622,2]
[346832711,1735312251714,-500.0,0.00010622,2]
[346832713,1735312251723,-619.08242091,0.00010622,2]
[346832715,1735312251733,-500.0,0.00010622,2]
[346832717,1735312251743,-500.0,0.00010622,2]
[346832720,1735312251752,-500.0,0.00010622,2]
[346832722,1735312251762,-500.0,0.00010622,2]
[346832723,1735312251772,-500.0,0.00010622,2]
[346832725,1735312251781,-500.0,0.00010622,2]
[346832727,1735312251793,-500.0,0.00010622,2]
[346832729,1735312251802,-500.0,0.00010622,2]
[346832731,1735312251811,-377.80211703,0.00010622,2]
[346832734,1735312251820,-10158.53,0.00010622,2]
[346832735,1735312251830,-500.0,0.00010622,2]
[346832737,1735312251839,-500.0,0.00010622,2]
[346832740,1735312251849,-1257.05,0.00010622,2]
[346832741,1735312251860,-587.51,0.00010622,2]
[346832743,1735312251869,-502.97312295,0.00010623,2]
[346832745,1735312251881,-505.08691284,0.00010623,2]
[346832747,1735312251894,-507.0673691,0.00010623,2]
[346832750,1735312251904,-502.62685817,0.00010623,2]
[346832751,1735312251914,-502.69311935,0.00010623,2]
[346832753,1735312251924,-500.0,0.00010623,2]
[346832755,1735312251933,-500.0,0.00010623,2]
[346832756,1735312251943,-500.0,0.00010623,2]
[346832758,1735312251952,-503.40711213,0.00010623,2]
[346832760,1735312251963,-500.0,0.00010623,2]
[346832762,1735312251973,-500.0,0.00010623,2]
[346832764,1735312251982,-500.0,0.00010623,2]
[346832766,1735312251992,-511.71684796,0.00010623,2]
[346832768,1735312252002,-502.38463958,0.00010623,2]
[346832770,1735312252013,-502.43792739,0.00010623,2]
[346832772,1735312252023,-502.51065196,0.00010623,2]
[346832774,1735312252032,-500.0,0.00010623,2]
[346832776,1735312252043,-500.0,0.00010623,2]
[346832778,1735312252052,-293.0198137,0.00010623,2]
[346832780,1735312252062,-500.0,0.00010623,2]
[346832782,1735312252073,-500.0,0.00010623,2]
[346832784,1735312252083,-500.0,0.00010623,2]
[346832786,1735312252092,-500.0,0.00010623,2]
[346832788,1735312252102,-500.0,0.00010623,2]
[346832790,1735312252112,-500.0,0.00010623,2]
[346832792,1735312252121,-500.0,0.00010623,2]
[346832794,1735312252131,-500.0,0.00010623,2]
[346832796,1735312252140,-1000.0,0.00010624,2]
[346832798,1735312252149,-2321.1,0.00010624,2]
[346832800,1735312252158,-2022.13,0.00010625,2]
[346832802,1735312252168,-1000.0,0.00010696,2]
[346832804,1735312252178,-678.224,0.0001088,2]
[346832806,1735312252188,-500.0,0.00010894,2]
[346832808,1735312252197,-1188.29,0.00010894,2]
[346832810,1735312252209,-349.05638344,0.00010894,2]
[346832812,1735312252220,-228.64756363,0.00010894,2]
[346832814,1735312252230,-640.02,0.00010894,2]
[346832816,1735312252241,-541.65,0.00010894,2]
[346832818,1735312252250,-442.86162145,0.00010894,2]
[346832820,1735312252260,-500.0,0.00010894,2]
[346832821,1735312252269,-401.46125889,0.00010894,2]
[346832823,1735312252278,-500.0,0.00010895,2]
[346832825,1735312252291,-500.0,0.00010895,2]
[346832827,1735312252301,-500.0,0.00010895,2]
[346832829,1735312252311,-503.75218545,0.00010895,2]
[346832831,1735312252320,-500.0,0.00010895,2]
[346832833,1735312252329,-504.78658202,0.00010895,2]
[346832835,1735312252339,-500.0,0.00010895,2]
[346832837,1735312252348,-500.0,0.00010895,2]
[346832839,1735312252358,-220.13408773,0.00010895,2]
[346832841,1735312252368,-698.33,0.00010895,2]
[346832843,1735312252378,-500.0,0.00010895,2]
[346832845,1735312252388,-504.39,0.00010895,2]
[346832847,1735312252397,-500.0,0.00010895,2]
[346832849,1735312252407,-500.0,0.00010895,2]
[346832851,1735312252417,-500.0,0.00010895,2]
[346832853,1735312252427,-500.0,0.00010895,2]
[346832855,1735312252436,-500.0,0.00010895,2]
[346832857,1735312252446,-500.0,0.00010895,2]
[346832859,1735312252455,-346.01,0.00010895,2]
[346832861,1735312252465,-500.0,0.00010895,2]
[346832863,1735312252474,-507.61,0.00010895,2]
[346832865,1735312252484,-539.80316214,0.00010896,2]
[346832867,1735312252493,-500.0,0.00010896,2]
[346832869,1735312252502,-500.0,0.00010896,2]
[346832871,1735312252511,-500.0,0.00010896,2]
[346832873,1735312252522,-500.0,0.00010896,2]
[346832875,1735312252531,-500.0,0.00010896,2]
[346832877,1735312252542,-500.0,0.00010896,2]
[346832879,1735312252551,-501.14899486,0.00010896,2]
[346832880,1735312252561,-150.95,0.00010896,2]
[346832882,1735312252571,-500.0,0.00010896,2]
[346832884,1735312252580,-500.0,0.00010896,2]
[346832885,1735312252590,-10158.53,0.00010896,2]
[346832887,1735312252600,-500.0,0.00010896,2]
[346832888,1735312252609,-500.0,0.00010896,2]
[346832889,1735312252619,-1257.05,0.00010896,2]
[346832890,1735312252629,-587.51,0.00010896,2]
[346832891,1735312252638,-500.0,0.00010897,2]
[346832892,1735312252647,-500.0,0.00010897,2]
[346832893,1735312252761,-500.0,0.00010897,2]
[346832894,1735312252772,-500.0,0.00010897,2]
[346832895,1735312252782,-500.0,0.00010897,2]
[346832896,1735312252793,-500.0,0.00010897,2]
[346832897,1735312252803,-262.16456001,0.00010897,2]
[346832898,1735312252813,-500.0,0.00010897,2]
[346832899,1735312252823,-1000.0,0.00010898,2]
[346832900,1735312252832,-2321.1,0.00010898,2]
[346832901,1735312252842,-2022.13,0.00010899,2]
[346832902,1735312252851,-158.23749,0.00010959,2]
[346832903,1735312252860,-152.147231,0.00010959,2]
[346832904,1735312252870,-216.040392,0.00010959,2]
[346832905,1735312252879,-216.040392,0.00010959,2]
[346832906,1735312252888,-216.040392,0.00010959,2]
[346832907,1735312252899,-216.040392,0.00010959,2]
[346832908,1735312252910,-216.040392,0.00010959,2]
[346832909,1735312252920,-216.040392,0.00010959,2]
[346832910,1735312252929,-216.040392,0.00010959,2]
[346832911,1735312252939,-216.040392,0.00010959,2]
[346832912,1735312252948,-216.040392,0.00010959,2]
[346832913,1735312252958,-216.040392,0.00010959,2]
[346832914,1735312252967,-151.0,0.00010959,2]
[346832915,1735312252977,-151.0,0.00010959,2]
[346832916,1735312252987,-446.099707,0.00010959,2]
[346832917,1735312252996,-446.099707,0.00010959,2]
[346832918,1735312253006,-446.099707,0.00010959,2]
[346832919,1735312253015,-446.099707,0.00010959,2]
[346832920,1735312253025,-446.099707,0.00010959,2]
[346832921,1735312253035,-446.099707,0.00010959,2]
[346832922,1735312253045,-446.099707,0.00010959,2]
[346832923,1735312253054,-446.099707,0.00010959,2]
[346832924,1735312253064,-446.099707,0.00010959,2]
[346832925,1735312253074,-446.099707,0.00010959,2]
[346832926,1735312253084,-151.0,0.00010959,2]
[346832927,1735312253093,-151.0,0.00010959,2]
[346832928,1735312253104,-151.0,0.00010959,2]
[346832929,1735312253114,-151.0,0.00010959,2]
[346832930,1735312253123,-151.0,0.00010959,2]
[346832931,1735312253132,-151.0,0.00010959,2]
[346832932,1735312253142,-151.0,0.00010959,2]
[346832933,1735312253151,-151.0,0.00010959,2]
[346832934,1735312253160,-151.0,0.00010959,2]
[346832935,1735312253170,-213.660489,0.00010959,2]
[346832936,1735312253179,-151.882123,0.00010959,2]
[346832937,1735312253189,-151.0,0.00010959,2]
[346832938,1735312253199,-151.0,0.00010959,2]
[346832939,1735312253210,-151.0,0.00010959,2]
[346832940,1735312253219,-151.0,0.00010959,2]
[346832941,1735312253228,-151.0,0.00010959,2]
[346832942,1735312253238,-151.0,0.00010959,2]
[346832943,1735312253247,-151.0,0.00010959,2]
[346832944,1735312253257,-151.0,0.00010959,2]
[346832945,1735312253266,-151.0,0.00010959,2]
[346832946,1735312253275,-151.0,0.00010959,2]
[346832947,1735312253285,-151.0,0.00010959,2]
[346832948,1735312253295,-151.0,0.00010959,2]
[346832949,1735312253304,-151.0,0.00010959,2]
[346832951,1735312253313,-151.0,0.00010959,2]
[346832953,1735312253322,-151.0,0.00010959,2]
[346832955,1735312253332,-151.0,0.00010959,2]
[346832956,1735312253341,-151.0,0.00010959,2]
[346832957,1735312253351,-151.0,0.00010959,2]
[346832958,1735312253360,-272.540264,0.00010959,2]
[346832959,1735312253369,-272.540264,0.00010959,2]
[346832960,1735312253379,-272.540264,0.00010959,2]
[346832961,1735312253388,-272.540264,0.00010959,2]
[346832963,1735312253398,-272.540264,0.00010959,2]
[346832964,1735312253407,-272.540264,0.00010959,2]
[346832965,1735312253416,-272.540264,0.00010959,2]
[346832966,1735312253425,-272.540264,0.00010959,2]
[346832968,1735312253435,-151.0,0.00010959,2]
[346832970,1735312253446,-151.0,0.00010959,2]
[346832972,1735312253455,-151.0,0.00010959,2]
[346832973,1735312253464,-151.0,0.00010959,2]
[346832974,1735312253474,-151.0,0.00010959,2]
[346832975,1735312253483,-151.0,0.00010959,2]
[346832976,1735312253492,-151.0,0.00010959,2]
[346832977,1735312253502,-151.0,0.00010959,2]
[346832978,1735312253511,-151.0,0.00010959,2]
[346832979,1735312253520,-151.0,0.00010959,2]
[346832980,1735312253529,-151.0,0.00010959,2]
[346832981,1735312253540,-151.0,0.00010959,2]
[346832982,1735312253550,-151.0,0.00010959,2]
[346832983,1735312253559,-151.0,0.00010959,2]
[346832984,1735312253568,-151.0,0.00010959,2]
[346832985,1735312253578,-151.0,0.00010959,2]
[346832986,1735312253588,-151.0,0.00010959,2]
[346832987,1735312253597,-151.0,0.00010959,2]
[346832988,1735312253607,-151.0,0.00010959,2]
[346832989,1735312253617,-151.0,0.00010959,2]
[346832990,1735312253627,-151.0,0.00010959,2]
[346832991,1735312253637,-151.0,0.00010959,2]
[346832992,1735312253646,-154.184414,0.00010959,2]
[346832993,1735312253656,-151.0,0.00010959,2]
[346832994,1735312253665,-151.0,0.00010959,2]
[346832995,1735312253674,-153.810594,0.00010959,2]
[346832996,1735312253684,-151.0,0.00010959,2]
[346832997,1735312253693,-151.0,0.00010959,2]
[346832998,1735312253703,-151.0,0.00010959,2]
[346832999,1735312253713,-151.0,0.00010959,2]
[346833000,1735312253722,-151.0,0.00010959,2]
[346833001,1735312253732,-151.0,0.00010959,2]
[346833002,1735312253742,-168.20735,0.00010959,2]
[346833003,1735312253751,-151.0,0.00010959,2]
[346833004,1735312253761,-168.20735,0.00010959,2]
[346833005,1735312253770,-151.0,0.00010959,2]
[346833006,1735312253780,-151.0,0.00010959,2]
[346833007,1735312253791,-168.20735,0.00010959,2]
[346833008,1735312253802,-168.20735,0.00010959,2]
[346833009,1735312253811,-168.20735,0.00010959,2]
[346833010,1735312253821,-151.0,0.00010959,2]
[346833011,1735312253830,-168.20735,0.00010959,2]
[346833012,1735312253840,-168.20735,0.00010959,2]
[346833013,1735312253849,-168.20735,0.00010959,2]
[346833014,1735312253859,-168.20735,0.00010959,2]
[346833015,1735312253868,-168.20735,0.00010959,2]
[346833016,1735312253877,-151.0,0.00010959,2]
[346833017,1735312253887,-151.0,0.00010959,2]
[346833018,1735312253899,-151.0,0.00010959,2]
[346833019,1735312253908,-151.0,0.00010959,2]
[346833020,1735312253918,-151.0,0.00010959,2]
[346833021,1735312253928,-151.0,0.00010959,2]
[346833022,1735312253937,-295.644656,0.00010959,2]
[346833023,1735312253947,-151.0,0.00010959,2]
[346833024,1735312253957,-151.0,0.00010959,2]
[346833025,1735312253966,-151.0,0.00010959,2]
[346833026,1735312253976,-151.0,0.00010959,2]
[346833027,1735312253985,-151.0,0.00010959,2]
[346833028,1735312253995,-272.540264,0.00010959,2]
[346833029,1735312254004,-272.540264,0.00010959,2]
[346833030,1735312254014,-352.2050668,0.00011041,2]
[346833031,1735312254023,-578.84,0.00011168,2]
[346833032,1735312254033,-1188.29,0.00011168,2]
[346833033,1735312254043,-640.02,0.00011168,2]
[346833034,1735312254053,-541.65,0.00011168,2]
[346833035,1735312254063,-500.0,0.00011168,2]
[346833036,1735312254072,-500.0,0.00011169,2]
[346833037,1735312254082,-550.50921357,0.00011169,2]
[346833038,1735312254092,-500.0,0.00011169,2]
[346833039,1735312254102,-698.33,0.00011169,2]
[346833040,1735312254112,-625.22,0.00011169,2]
[346833041,1735312254122,-500.0,0.00011169,2]
[346833042,1735312254131,-500.0,0.00011169,2]
[346833043,1735312254140,-500.0,0.00011169,2]
[346833044,1735312254150,-518.49138735,0.00011169,2]
[346833045,1735312254159,-500.0,0.00011169,2]
[346833046,1735312254168,-266.68,0.00011169,2]
[346833047,1735312254178,-500.0,0.0001117,2]
[346833048,1735312254188,-500.0,0.0001117,2]
[346833049,1735312254197,-500.0,0.0001117,2]
[346833050,1735312254207,-500.0,0.0001117,2]
[346833051,1735312254217,-500.0,0.0001117,2]
[346833052,1735312254226,-500.0,0.0001117,2]
[346833053,1735312254236,-500.0,0.0001117,2]
[346833054,1735312254247,-233.6024292,0.0001117,2]
[346833055,1735312254256,-151.0,0.0001117,2]
[346833056,1735312254267,-10158.53,0.0001117,2]
[346833057,1735312254277,-500.0,0.0001117,2]
[346833058,1735312254286,-500.0,0.0001117,2]
[346833059,1735312254297,-1257.05,0.0001117,2]
[346833060,1735312254307,-587.51,0.0001117,2]
[346833061,1735312254316,-361.5006161,0.00011171,2]
[346833062,1735312254326,-560.47859163,0.00011171,2]
[346833063,1735312254335,-500.0,0.00011171,2]
[346833064,1735312254345,-500.0,0.00011171,2]
[346833065,1735312254354,-1000.0,0.00011172,2]
[346833066,1735312254364,-151.0,0.00011172,2]
[346833067,1735312254373,-2321.1,0.00011172,2]
[346833068,1735312254383,-2022.13,0.00011173,2]
[346833069,1735312254392,-181.865404,0.00011173,2]
[346833070,1735312254402,-168.20735,0.00011173,2]
[346833071,1735312254412,-168.20735,0.00011173,2]
[346833072,1735312254421,-1000.0,0.00011261,2]
[346833073,1735312254432,-151.0,0.00011261,2]
[346833074,1735312254442,-151.0,0.00011261,2]
[346833075,1735312254451,-1000.0,0.00011283,2]
[346833076,1735312254461,-233.6404696,0.00011334,2]
[346833077,1735312254472,-1188.29,0.00011442,2]
[346833078,1735312254482,-640.02,0.00011442,2]
[346833079,1735312254492,-541.65,0.00011442,2]
[346833080,1735312254502,-500.0,0.00011442,2]
[346833081,1735312254511,-500.0,0.00011443,2]
[346833082,1735312254521,-500.0,0.00011443,2]
[346833083,1735312254532,-698.33,0.00011443,2]
[346833084,1735312254542,-500.0,0.00011443,2]
[346833085,1735312254552,-500.0,0.00011443,2]
[346833086,1735312254562,-500.0,0.00011443,2]
[346833087,1735312254573,-500.0,0.00011443,2]
[346833088,1735312254582,-500.0,0.00011444,2]
[346833089,1735312254592,-500.0,0.00011444,2]
[346833090,1735312254602,-276.47,0.00011444,2]
[346833091,1735312254613,-500.0,0.00011444,2]
[346833092,1735312254623,-641.62234858,0.00011444,2]
[346833093,1735312254633,-10158.53,0.00011444,2]
[346833094,1735312254643,-189.97,0.00011444,2]
[346833095,1735312254654,-1257.05,0.00011444,2]
[346833096,1735312254664,-587.51,0.00011444,2]
[346833097,1735312254673,-216.040392,0.00011445,2]
[346833098,1735312254683,-216.040392,0.00011445,2]
[346833099,1735312254692,-446.099707,0.00011445,2]
[346833100,1735312254701,-446.099707,0.00011445,2]
[346833101,1735312254711,-151.0,0.00011445,2]
[346833102,1735312254720,-151.0,0.00011445,2]
[346833103,1735312254730,-151.0,0.00011445,2]
[346833104,1735312254739,-390.49757372,0.00011445,2]
[346833105,1735312254749,-365.30352426,0.00011445,2]
[346833106,1735312254759,-1000.0,0.00011446,2]
[346833107,1735312254768,-2321.1,0.00011446,2]
[346833108,1735312254778,-2022.13,0.00011447,2]
[346833109,1735312254788,-394.0,0.00011516,2]
[346833110,1735312254797,-399.408,0.00011516,2]
[346833111,1735312254806,-587.0,0.00011523,2]
[346833112,1735312254816,-249.095,0.000116,2]
[346833114,1735312254825,-2110.0,0.000116,2]
[346833115,1735312254834,-503.72968014,0.00011602,2]
[346833116,1735312254844,-281.3521719,0.00011644,2]
[346833117,1735312254854,-1500.0,0.00011698,2]
[346833118,1735312254863,-1188.29,0.00011716,2]
[346833119,1735312254873,-640.02,0.00011716,2]
[346833120,1735312254882,-541.65,0.00011716,2]
[346833121,1735312254893,-500.0,0.00011716,2]
[346833122,1735312254906,-500.0,0.00011717,2]
[346833123,1735312254915,-500.0,0.00011717,2]
[346833124,1735312254925,-698.33,0.00011717,2]
[346833125,1735312254934,-500.0,0.00011717,2]
[346833126,1735312254946,-500.0,0.00011717,2]
[346833127,1735312254955,-500.0,0.00011717,2]
[346833128,1735312254964,-500.0,0.00011717,2]
[346833129,1735312254975,-500.0,0.00011718,2]
[346833130,1735312254985,-500.0,0.00011718,2]
[346833131,1735312254994,-10158.53,0.00011718,2]
[346833132,1735312255004,-1257.05,0.00011718,2]
[346833133,1735312255014,-587.51,0.00011718,2]
[346833134,1735312255023,-1000.0,0.0001172,2]
[346833135,1735312255032,-2321.1,0.0001172,2]
[346833136,1735312255042,-2022.13,0.00011721,2]
[346833137,1735312255051,-531.92,0.00011725,2]
[346833138,1735312255060,-658.61,0.0001194,2]
[346833139,1735312255070,-1200.0,0.0001194,2]
[346833140,1735312255079,-151.0,0.0001194,2]
[346833141,1735312255089,-1188.29,0.0001199,2]
[346833142,1735312255099,-640.02,0.0001199,2]
[346833143,1735312255108,-541.65,0.0001199,2]
[346833144,1735312255119,-500.0,0.0001199,2]
[346833145,1735312255128,-410.84882345,0.00011991,2]
[346833146,1735312255138,-500.0,0.00011991,2]
[346833147,1735312255147,-698.33,0.00011991,2]
[346833148,1735312255157,-500.0,0.00011991,2]
[346833149,1735312255247,-500.0,0.00011991,2]
[346833150,1735312255269,-500.0,0.00011991,2]
[346833151,1735312255280,-607.47238484,0.00011991,2]
[346833152,1735312255289,-500.0,0.00011992,2]
[346833153,1735312255301,-500.0,0.00011992,2]
[346833154,1735312255311,-10158.53,0.00011992,2]
[346833155,1735312255320,-1257.05,0.00011992,2]
[346833156,1735312255331,-587.51,0.00011992,2]
[346833157,1735312255340,-1000.0,0.00011994,2]
[346833158,1735312255350,-2321.1,0.00011994,2]
[346833159,1735312255360,-2022.13,0.00011995,2]
[346833160,1735312255369,-352.3665978,0.00012082,2]
[346833161,1735312255380,-352.3665978,0.00012082,2]
[346833162,1735312255389,-352.3665978,0.00012082,2]
[346833163,1735312255398,-239.4792156,0.00012082,2]
[346833164,1735312255407,-472.88900567,0.00012121,2]
[346833165,1735312255417,-1188.29,0.00012264,2]
[346833166,1735312255428,-640.02,0.00012264,2]
[346833167,1735312255437,-541.65,0.00012264,2]
[346833168,1735312255447,-500.0,0.00012264,2]
[346833169,1735312255457,-500.0,0.00012265,2]
[346833170,1735312255467,-698.33,0.00012265,2]
[346833171,1735312255476,-500.0,0.00012265,2]
[346833172,1735312255486,-500.0,0.00012265,2]
[346833173,1735312255495,-203.43097851,0.00012265,2]
[346833174,1735312255504,-500.0,0.00012266,2]
[346833175,1735312255513,-500.0,0.00012266,2]
[346833176,1735312255523,-10158.53,0.00012266,2]
[346833177,1735312255532,-1257.05,0.00012266,2]
[346833178,1735312255543,-168.20735,0.00012266,2]
[346833179,1735312255553,-168.20735,0.00012266,2]
[346833180,1735312255562,-587.51,0.00012266,2]
[346833181,1735312255572,-151.0,0.00012266,2]
[346833182,1735312255581,-151.0,0.00012266,2]
[346833183,1735312255590,-216.040392,0.00012268,2]
[346833184,1735312255600,-216.040392,0.00012268,2]
[346833185,1735312255610,-446.099707,0.00012268,2]
[346833186,1735312255620,-446.099707,0.00012268,2]
[346833187,1735312255630,-1000.0,0.00012268,2]
[346833188,1735312255639,-151.0,0.00012268,2]
[346833189,1735312255649,-151.0,0.00012268,2]
[346833190,1735312255658,-151.0,0.00012268,2]
[346833191,1735312255668,-272.540264,0.00012268,2]
[346833192,1735312255678,-272.540264,0.00012268,2]
[346833193,1735312255688,-2321.1,0.00012268,2]
[346833194,1735312255697,-2022.13,0.00012269,2]